{"text_format":"1","workbook":"xlsx","n_sheets":4,"sheets":["Relación de gastos","Relación de ingresos ","Resumen estado gastos-ingresos","Full1"],"not_rendered":{"charts":0,"images":1,"macros":1,"external_links":0,"defined_names":7,"comments":3,"pivot_tables":0},"unopened":[],"bounds":{"document_bytes":16777216,"sheet_cells":100000,"rows_first":2000,"rows_last":500,"rows_between":2000,"halvings":0,"cell_chars":16384,"cell_head_chars":4096},"cells_cut":0,"cells_raw":0,"read":"whole","date_system":"1900"}

{"sheet":"Relación de gastos","index":0,"n_rows":118,"n_cols":12,"rows_kept":118,"cut":false,"hidden":false,"merged":[[117,0,117,12],[116,0,116,12],[114,0,114,12],[115,0,115,12],[113,0,113,12],[106,0,106,12],[107,0,107,12],[90,11,90,12],[83,11,83,12],[103,11,103,12],[104,11,104,12],[104,0,104,5],[100,11,100,12],[98,0,98,12],[92,11,92,12],[103,0,103,8],[102,11,102,12],[99,11,99,12],[97,0,97,8],[84,11,84,12],[110,4,110,5],[91,0,91,12],[96,11,96,12],[97,11,97,12],[85,0,85,8],[90,0,90,8],[73,11,73,12],[72,11,72,12],[7,11,7,12],[87,11,87,12],[88,11,88,12],[89,11,89,12],[69,11,69,12],[36,11,36,12],[14,11,14,12],[13,11,13,12],[25,11,25,12],[40,11,40,12],[39,11,39,12],[38,11,38,12],[37,11,37,12],[24,11,24,12],[81,0,81,12],[76,0,76,12],[86,0,86,12],[63,0,63,12],[82,11,82,12],[77,11,77,12],[55,0,55,8],[62,0,62,8],[66,11,66,12],[70,0,70,12],[30,11,30,12],[29,11,29,12],[7,1,8,1],[7,0,8,0],[8,11,8,12],[9,0,9,12],[60,11,60,12],[59,11,59,12],[58,11,58,12],[57,11,57,12],[55,11,55,12],[54,11,54,12],[7,3,7,4],[75,0,75,8],[80,0,80,8],[51,11,51,12],[42,0,42,12],[56,0,56,12],[34,0,34,8],[79,11,79,12],[80,11,80,12],[26,0,26,12],[34,11,34,12],[68,11,68,12],[78,11,78,12],[67,11,67,12],[49,0,49,12],[53,11,53,12],[52,11,52,12],[4,5,4,8],[69,0,69,8],[93,11,93,12],[4,9,4,10],[25,0,25,8],[43,11,43,12],[41,11,41,12],[85,11,85,12],[64,11,64,12],[75,11,75,12],[74,11,74,12],[65,11,65,12],[50,11,50,12],[62,11,62,12],[61,11,61,12],[33,11,33,12],[31,11,31,12],[12,11,12,12],[35,0,35,12],[28,11,28,12],[0,0,0,12],[4,0,4,1],[2,2,2,3],[3,2,3,3],[4,2,4,3],[10,11,10,12],[2,0,2,1],[48,11,48,12],[47,11,47,12],[46,11,46,12],[45,11,45,12],[44,11,44,12],[7,2,8,2],[11,11,11,12],[2,9,2,10],[3,9,3,10],[15,11,15,12],[6,0,6,4],[48,0,48,8],[2,6,2,8],[3,6,3,8],[3,0,3,1],[41,0,41,8],[27,11,27,12]]}
["Relación clasificada de todos los gastos realizados para la ejecución de la actividad subvencionada"]
[]
["Persona física/jurídica beneficiaria:",null,null,null,null,null,"Importe total del proyecto:",null,null,null,null,"euros"]
["Código de subvención:",null,null,null,null,null,"Importe de la subvención otorgada:",null,null,null,null,"euros"]
["Nombre del proyecto subvencionado:",null,null,null,null,"Período de ejecución del proyecto subvencionado:",null,null,null,null,null,"a"]
[]
["Gastos del proyecto/actividad/servicio subvencionado (*)"]
["núm. de orden","Número de documento: justificantes gasto personal (1), factura o recibo/tiquet(2)","Concepto de la factura / \ndocumento probatorio equivalente","Emisor de la factura",null,"Fecha de emisión","Importe total de la factura","Porcentaje de iva deducido o el de después de aplicar la Prorrata","Importe después de deducir el IVA correspondiente","Importe imputable (dedicado) al proyecto (3)","Importe imputable a la subvención municipal (4)","Observaciones"]
[null,null,null,"NIF","Nombre","dd/mm/aaaa","euros","%","euros","euros","euros","(2)"]
["A. Recursos Humanos (retribuciones brutas y Seguridad Social del personal fijo o eventual contratado)"]
[{"$f":"IF(B11<>\"\",1,\"\")","v":""}]
[{"$f":"IF(B12<>\"\",MAX($A$11:A11)+1,\"\")","v":""}]
[{"$f":"IF(B13<>\"\",MAX($A$11:A12)+1,\"\")","v":""}]
[{"$f":"IF(B14<>\"\",MAX($A$11:A13)+1,\"\")","v":""}]
[{"$f":"IF(B15<>\"\",MAX($A$11:A14)+1,\"\")","v":""}]
[{"$f":"IF(B16<>\"\",MAX($A$11:A15)+1,\"\")","v":""}]
[{"$f":"IF(B17<>\"\",MAX($A$11:A16)+1,\"\")","v":""}]
[{"$f":"IF(B18<>\"\",MAX($A$11:A17)+1,\"\")","v":""}]
[{"$f":"IF(B19<>\"\",MAX($A$11:A18)+1,\"\")","v":""}]
[{"$f":"IF(B20<>\"\",MAX($A$11:A19)+1,\"\")","v":""}]
[{"$f":"IF(B21<>\"\",MAX($A$11:A20)+1,\"\")","v":""}]
[{"$f":"IF(B22<>\"\",MAX($A$11:A21)+1,\"\")","v":""}]
[{"$f":"IF(B23<>\"\",MAX($A$11:A22)+1,\"\")","v":""}]
[{"$f":"IF(B24<>\"\",MAX($A$11:A23)+1,\"\")","v":""}]
[{"$f":"IF(B25<>\"\",MAX($A$11:A24)+1,\"\")","v":""}]
["Subtotal A",null,null,null,null,null,null,null,null,{"$f":"SUM(J11:J25)","v":0},{"$f":"SUM(K11:K25)","v":0}]
["B. Alquileres (materiales, infraestructuras, locales, etc.)"]
[{"$f":"IF(B28<>\"\",MAX($A$11:A27)+1,\"\")","v":""}]
[{"$f":"IF(B29<>\"\",MAX($A$27:A28)+1,\"\")","v":""}]
[{"$f":"IF(B30<>\"\",MAX($A$27:A29)+1,\"\")","v":""}]
[{"$f":"IF(B31<>\"\",MAX($A$27:A30)+1,\"\")","v":""}]
[{"$f":"IF(B32<>\"\",MAX($A$27:A31)+1,\"\")","v":""}]
[{"$f":"IF(B33<>\"\",MAX($A$27:A32)+1,\"\")","v":""}]
[{"$f":"IF(B34<>\"\",MAX($A$27:A33)+1,\"\")","v":""}]
["Subtotal B",null,null,null,null,null,null,null,null,{"$f":"SUM(J28:J34)","v":0},{"$f":"SUM(K28:K34)","v":0}]
["C. Suministros (luz, agua, gas, etc.)"]
[{"$f":"IF(B37<>\"\",MAX($A$11:A36)+1,\"\")","v":""}]
[{"$f":"IF(B38<>\"\",MAX($A$27:A37)+1,\"\")","v":""}]
[{"$f":"IF(B39<>\"\",MAX($A$27:A38)+1,\"\")","v":""}]
[{"$f":"IF(B40<>\"\",MAX($A$27:A39)+1,\"\")","v":""}]
[{"$f":"IF(B41<>\"\",MAX($A$27:A40)+1,\"\")","v":""}]
["Subtotal C",null,null,null,null,null,null,null,null,{"$f":"SUM(J37:J41)","v":0},{"$f":"SUM(K37:K41)","v":0}]
["D. Comunicaciones (teléfono, correo, etc.)"]
[{"$f":"IF(B44<>\"\",MAX($A$11:A43)+1,\"\")","v":""}]
[{"$f":"IF(B45<>\"\",MAX($A$27:A44)+1,\"\")","v":""}]
[{"$f":"IF(B46<>\"\",MAX($A$27:A45)+1,\"\")","v":""}]
[{"$f":"IF(B47<>\"\",MAX($A$27:A46)+1,\"\")","v":""}]
[{"$f":"IF(B48<>\"\",MAX($A$27:A47)+1,\"\")","v":""}]
["Subtotal D",null,null,null,null,null,null,null,null,{"$f":"SUM(J44:J48)","v":0},{"$f":"SUM(K44:K48)","v":0}]
["E. Mantenimiento de edificios y/o instalaciones"]
[{"$f":"IF(B51<>\"\",MAX($A$11:A50)+1,\"\")","v":""}]
[{"$f":"IF(B52<>\"\",MAX($A$27:A51)+1,\"\")","v":""}]
[{"$f":"IF(B53<>\"\",MAX($A$27:A52)+1,\"\")","v":""}]
[{"$f":"IF(B54<>\"\",MAX($A$27:A53)+1,\"\")","v":""}]
[{"$f":"IF(B55<>\"\",MAX($A$27:A54)+1,\"\")","v":""}]
["Subtotal E",null,null,null,null,null,null,null,null,{"$f":"SUM(J51:J55)","v":0},{"$f":"SUM(K51:K55)","v":0}]
["F. Adquisición de material fungible (de oficina, etc.)"]
[{"$f":"IF(B58<>\"\",MAX($A$11:A57)+1,\"\")","v":""}]
[{"$f":"IF(B59<>\"\",MAX($A$27:A58)+1,\"\")","v":""}]
[{"$f":"IF(B60<>\"\",MAX($A$27:A59)+1,\"\")","v":""}]
[{"$f":"IF(B61<>\"\",MAX($A$27:A60)+1,\"\")","v":""}]
[{"$f":"IF(B62<>\"\",MAX($A$27:A61)+1,\"\")","v":""}]
["Subtotal F",null,null,null,null,null,null,null,null,{"$f":"SUM(J58:J62)","v":0},{"$f":"SUM(K58:K62)","v":0}]
["G. Transporte - Mensajería"]
[{"$f":"IF(B65<>\"\",MAX($A$11:A64)+1,\"\")","v":""}]
[{"$f":"IF(B66<>\"\",MAX($A$27:A65)+1,\"\")","v":""}]
[{"$f":"IF(B67<>\"\",MAX($A$27:A66)+1,\"\")","v":""}]
[{"$f":"IF(B68<>\"\",MAX($A$27:A67)+1,\"\")","v":""}]
[{"$f":"IF(B69<>\"\",MAX($A$27:A68)+1,\"\")","v":""}]
["Subtotal G",null,null,null,null,null,null,null,null,{"$f":"SUM(J65:J69)","v":0},{"$f":"SUM(K65:K69)","v":0}]
["H. Publicidad y Propaganda"]
[{"$f":"IF(B72<>\"\",MAX($A$11:A71)+1,\"\")","v":""}]
[{"$f":"IF(B73<>\"\",MAX($A$27:A72)+1,\"\")","v":""}]
[{"$f":"IF(B74<>\"\",MAX($A$27:A73)+1,\"\")","v":""}]
[{"$f":"IF(B75<>\"\",MAX($A$27:A74)+1,\"\")","v":""}]
["Subtotal H",null,null,null,null,null,null,null,null,{"$f":"SUM(J72:J75)","v":0},{"$f":"SUM(K72:K75)","v":0}]
["I. Seguros"]
[{"$f":"IF(B78<>\"\",MAX($A$11:A77)+1,\"\")","v":""}]
[{"$f":"IF(B79<>\"\",MAX($A$27:A78)+1,\"\")","v":""}]
[{"$f":"IF(B80<>\"\",MAX($A$27:A79)+1,\"\")","v":""}]
["Subtotal I",null,null,null,null,null,null,null,null,{"$f":"SUM(J78:J80)","v":0},{"$f":"SUM(K78:K80)","v":0}]
["J. Alojamiento y dietas (2)"]
[{"$f":"IF(B83<>\"\",MAX($A$11:A82)+1,\"\")","v":""}]
[{"$f":"IF(B84<>\"\",MAX($A$27:A83)+1,\"\")","v":""}]
[{"$f":"IF(B85<>\"\",MAX($A$27:A84)+1,\"\")","v":""}]
["Subtotal J",null,null,null,null,null,null,null,null,{"$f":"SUM(J83:J85)","v":0},{"$f":"SUM(K83:K85)","v":0}]
["K. Viajes y desplazamientos (2)"]
[{"$f":"IF(B88<>\"\",MAX($A$11:A87)+1,\"\")","v":""}]
[{"$f":"IF(B89<>\"\",MAX($A$27:A88)+1,\"\")","v":""}]
[{"$f":"IF(B90<>\"\",MAX($A$27:A89)+1,\"\")","v":""}]
["Subtotal K",null,null,null,null,null,null,null,null,{"$f":"SUM(J88:J90)","v":0},{"$f":"SUM(K88:K90)","v":0}]
["L. Trabajos realizados por empresas externas (limpieza, seguridad, otros trabajos directamente relacionados con la actividad y/o proyecto)"]
[{"$f":"IF(B93<>\"\",MAX($A$11:A92)+1,\"\")","v":""}]
[{"$f":"IF(B94<>\"\",MAX($A$27:A93)+1,\"\")","v":""}]
[{"$f":"IF(B95<>\"\",MAX($A$27:A94)+1,\"\")","v":""}]
[{"$f":"IF(B96<>\"\",MAX($A$27:A95)+1,\"\")","v":""}]
[{"$f":"IF(B97<>\"\",MAX($A$27:A96)+1,\"\")","v":""}]
["Subtotal L",null,null,null,null,null,null,null,null,{"$f":"SUM(J93:J97)","v":0},{"$f":"SUM(K93:K97)","v":0}]
["M. Otros gastos (a especificar)"]
[{"$f":"IF(B100<>\"\",MAX($A$11:A99)+1,\"\")","v":""}]
[{"$f":"IF(B101<>\"\",MAX($A$27:A100)+1,\"\")","v":""}]
[{"$f":"IF(B102<>\"\",MAX($A$27:A101)+1,\"\")","v":""}]
[{"$f":"IF(B103<>\"\",MAX($A$27:A102)+1,\"\")","v":""}]
["Subtotal M",null,null,null,null,null,null,null,null,{"$f":"SUM(J100:J103)","v":0},{"$f":"SUM(K100:K103)","v":0}]
["TOTAL GASTOS",null,null,null,null,null,"TOTAL",null,null,{"$f":"+J26+J35+J42+J49+J56+J63+J70+J76+J81+J86+J91+J98+J104","v":0},{"$f":"+K26+K35+K42+K49+K56+K63+K70+K76+K81+K86+K91+K98+K104","v":0}]
[]
["El Sr./Sra. (indicar el nombre y apellidos de la persona representante que firma la justificación )  con DNI/NIE (indicar el núm. DNI ) en calidad de persona física beneficiaria o representante legal de la persona jurídica beneficiaria (indicar nombre)  con NIF (indicar núm. NIF)."]
["CERTIFICA que los recibos/tickets que se han identificado como tales en el campo de observaciones corresponden a gastos generados por dicha actividad, que por sus importes y características no han podido ser objeto de factura; que los justificantes relacionados imputados al proyecto/actividad/servicio subvencionado durante su periodo de ejecución han sido efectivamente pagados; que custodiará la documentación soporte que lo acredita; que esta documentación se encuentra a disposición del Ayuntamiento de Barcelona o de los demás ente municipales en los archivos de esta Entidad, durante un periodo mínimo de 4 años a contar desde la fecha de presentación de la presente justificación."]
[]
[]
[null,"Población y fecha: ",null,null,"Firmado digitalmente:"]
[]
["Notes:"]
["(*) Se deben relacionar todos los gastos del proyecto/actividad/servicio subvencionado. En el caso de que el número de filas de cada concepto sea insuficiente podéis insertar líneas dentro del mismo concepto seleccionando una celda verde y haciendo clic sobre el botón de insertar línea."]
["(1) Respecto a los gastos de recursos humanos, puede ser subvencionable el coste total salarial mensual, que corresponde a la suma de la retribución bruta que aparece en la nómina del trabajador/a más la cuota de la empresa en la Seg. Social. Los gastos de personal se justifican con la nómina del trabajador acompañada de los correspondientes RNT y RLC de la TMV y el modelo 111 del IRPF."]
["(2) En el caso de que el documento justificativo del resto de gastos, no sea una factura, sino otro documento probatorio equivalente, como un recibo o justificante (como por dietas o transporte público), indicarlo en el campo de observaciones."]
["(3) En el caso de que un justificante incluya conceptos que no tienen que ver con el proyecto/actividad/servicio para el que se ha otorgado la subvención, aquí sólo se debe indicar la parte que realmente se ha dedicado al proyecto."]
["(4) En esta columna se debe indicar el importe total o parcial de la factura que se imputa a la subvención recibida del Ayuntamiento de Barcelona/IBE/ICUB/IMPD/IMSS. El total imputado, en esta columna, debe ser igual al importe de la subvención recibida."]

{"sheet":"Relación de ingresos ","index":1,"n_rows":93,"n_cols":10,"rows_kept":93,"cut":false,"hidden":false,"merged":[[58,6,58,9],[31,0,31,3],[62,6,62,9],[61,6,61,9],[24,0,24,3],[55,0,55,9],[57,6,57,9],[56,6,56,9],[37,6,37,9],[36,6,36,9],[31,6,31,9],[30,6,30,9],[28,6,28,9],[27,6,27,9],[26,6,26,9],[43,6,43,9],[17,0,17,3],[54,0,54,3],[32,0,32,9],[40,0,40,9],[46,0,46,9],[45,0,45,3],[39,0,39,3],[17,6,17,9],[24,6,24,9],[34,6,34,9],[33,6,33,9],[45,6,45,9],[44,6,44,9],[35,6,35,9],[39,6,39,9],[38,6,38,9],[0,0,0,9],[9,0,9,9],[18,0,18,9],[25,0,25,9],[7,6,8,9],[11,6,11,9],[12,6,12,9],[7,0,8,0],[13,6,13,9],[16,6,16,9],[3,2,3,3],[2,2,2,3],[6,0,6,3],[4,2,4,3],[7,2,7,3],[7,1,8,1],[23,6,23,9],[22,6,22,9],[21,6,21,9],[20,6,20,9],[19,6,19,9],[42,6,42,9],[41,6,41,9],[54,6,54,9],[53,6,53,9],[52,6,52,9],[50,6,50,9],[49,6,49,9],[48,6,48,9],[47,6,47,9],[63,0,63,9],[70,0,70,9],[59,6,59,9],[69,6,69,9],[71,6,71,9],[69,0,69,3],[62,0,62,3],[60,6,60,9],[68,6,68,9],[66,6,66,9],[65,6,65,9],[64,6,64,9],[72,6,72,9],[83,6,83,9],[83,0,83,3],[82,0,82,3],[85,0,85,9],[82,6,82,9],[90,1,90,6],[81,6,81,9],[77,6,77,9],[75,6,75,9],[86,0,86,9],[87,2,87,3],[87,5,87,6]]}
["Detalle de todos los ingresos obtenidos y aportaciones del propio beneficiario para la ejecución de la actividad subvencionada"]
[]
[null,"Nombre de la persona física/jurídica beneficiaria:",{"$f":"IF('Relación de gastos'!C3:D3<>\"\",'Relación de gastos'!C3:D3,\"\")","v":""},null,"Importe total del proyecto :",null,null,{"$f":"IF(+'Relación de gastos'!J3=\"\",\"\",+'Relación de gastos'!J3)","v":""},"euros"]
[null,"Código de subvención",{"$f":"IF('Relación de gastos'!C4:D4<>\"\",'Relación de gastos'!C4:D4,\"\")","v":""},null,"Importe de la subvención otorgada:",null,null,{"$f":"IF(+'Relación de gastos'!J4=\"\",\"\",+'Relación de gastos'!J4)","v":""},"euros"]
[null,"Nombre del proyecto subvencionado",{"$f":"IF('Relación de gastos'!C5:D5<>\"\",'Relación de gastos'!C5:D5,\"\")","v":""},null,"Periodo ejecución del proyecto subvencionado:",null,null,{"$f":"IF(+'Relación de gastos'!J5=\"\",\"\",+'Relación de gastos'!J5)","v":""},"a",{"$f":"IF(+'Relación de gastos'!M5=\"\",\"\",+'Relación de gastos'!M5)","v":""}]
[]
["Ingresos del proyecto/actividad/servicio subvencionado"]
["núm. de orden","Concepto del ingreso","Emisor del ingreso",null,"Fecha de cobro\n(dd/mm/aaaa)","Importe","Observaciones"]
[null,null,"NIF","Nombre","(1)","euros"]
["A.B. Subvenciones del Ayuntamiento de Barcelona"]
[]
[{"$f":"IF(B12<>\"\",1,\"\")","v":""}]
[]
[]
[]
[{"$f":"IF(B16<>\"\",MAX($A$10:A15)+1,\"\")","v":""}]
[{"$f":"IF(B17<>\"\",MAX($A$10:A16)+1,\"\")","v":""}]
[null,null,null,null,"Subtotal A",{"$f":"SUM(F12:F17)","v":0}]
["C. Subvenciones de otras administraciones"]
[{"$f":"IF(B20<>\"\",MAX($A$10:A19)+1,\"\")","v":""}]
[{"$f":"IF(B21<>\"\",MAX($A$10:A20)+1,\"\")","v":""}]
[{"$f":"IF(B22<>\"\",MAX($A$10:A21)+1,\"\")","v":""}]
[{"$f":"IF(B23<>\"\",MAX($A$10:A22)+1,\"\")","v":""}]
[{"$f":"IF(B24<>\"\",MAX($A$10:A23)+1,\"\")","v":""}]
[null,null,null,null,"Subtotal B",{"$f":"SUM(F20:F24)","v":0}]
["D. Aportaciones de ente privados"]
[{"$f":"IF(B27<>\"\",MAX($A$10:A26)+1,\"\")","v":""}]
[{"$f":"IF(B28<>\"\",MAX($A$10:A27)+1,\"\")","v":""}]
[{"$f":"IF(B29<>\"\",MAX($A$10:A28)+1,\"\")","v":""}]
[{"$f":"IF(B30<>\"\",MAX($A$10:A29)+1,\"\")","v":""}]
[{"$f":"IF(B31<>\"\",MAX($A$10:A30)+1,\"\")","v":""}]
[null,null,null,null,"Subtotal C",{"$f":"SUM(F27:F31)","v":0}]
["E. Recursos propios"]
[{"$f":"IF(B34<>\"\",MAX($A$10:A33)+1,\"\")","v":""}]
[{"$f":"IF(B35<>\"\",MAX($A$10:A34)+1,\"\")","v":""}]
[{"$f":"IF(B36<>\"\",MAX($A$10:A35)+1,\"\")","v":""}]
[{"$f":"IF(B37<>\"\",MAX($A$10:A36)+1,\"\")","v":""}]
[{"$f":"IF(B38<>\"\",MAX($A$10:A37)+1,\"\")","v":""}]
[{"$f":"IF(B39<>\"\",MAX($A$10:A38)+1,\"\")","v":""}]
[null,null,null,null,"Subtotal D",{"$f":"SUM(F34:F39)","v":0}]
["F. Taquillaje"]
[{"$f":"IF(B42<>\"\",MAX($A$10:A41)+1,\"\")","v":""}]
[{"$f":"IF(B43<>\"\",MAX($A$10:A42)+1,\"\")","v":""}]
[{"$f":"IF(B44<>\"\",MAX($A$10:A43)+1,\"\")","v":""}]
[{"$f":"IF(B45<>\"\",MAX($A$10:A44)+1,\"\")","v":""}]
[null,null,null,null,"Subtotal E",{"$f":"SUM(F42:F45)","v":0}]
["G. Cuotas de inscripción"]
[{"$f":"IF(B48<>\"\",MAX($A$10:A47)+1,\"\")","v":""}]
[{"$f":"IF(B49<>\"\",MAX($A$10:A48)+1,\"\")","v":""}]
[{"$f":"IF(B50<>\"\",MAX($A$10:A49)+1,\"\")","v":""}]
[{"$f":"IF(B51<>\"\",MAX($A$10:A50)+1,\"\")","v":""}]
[{"$f":"IF(B52<>\"\",MAX($A$10:A51)+1,\"\")","v":""}]
[{"$f":"IF(B53<>\"\",MAX($A$10:A52)+1,\"\")","v":""}]
[{"$f":"IF(B54<>\"\",MAX($A$10:A53)+1,\"\")","v":""}]
[null,null,null,null,"Subtotal F",{"$f":"SUM(F48:F54)","v":0}]
["H. Venta de Productos"]
[{"$f":"IF(B57<>\"\",MAX($A$10:A56)+1,\"\")","v":""}]
[{"$f":"IF(B58<>\"\",MAX($A$10:A57)+1,\"\")","v":""}]
[{"$f":"IF(B59<>\"\",MAX($A$10:A58)+1,\"\")","v":""}]
[{"$f":"IF(B60<>\"\",MAX($A$10:A59)+1,\"\")","v":""}]
[{"$f":"IF(B61<>\"\",MAX($A$10:A60)+1,\"\")","v":""}]
[{"$f":"IF(B62<>\"\",MAX($A$10:A61)+1,\"\")","v":""}]
[null,null,null,null,"Subtotal G",{"$f":"SUM(F57:F62)","v":0}]
["I. Publicidad y/o Esponsorización"]
[{"$f":"IF(B65<>\"\",MAX($A$10:A64)+1,\"\")","v":""}]
[{"$f":"IF(B66<>\"\",MAX($A$10:A65)+1,\"\")","v":""}]
[{"$f":"IF(B67<>\"\",MAX($A$10:A66)+1,\"\")","v":""}]
[{"$f":"IF(B68<>\"\",MAX($A$10:A67)+1,\"\")","v":""}]
[{"$f":"IF(B69<>\"\",MAX($A$10:A68)+1,\"\")","v":""}]
[null,null,null,null,"Subtotal H",{"$f":"SUM(F65:F69)","v":0}]
["J. Otros ingresos"]
[{"$f":"IF(B72<>\"\",MAX($A$10:A71)+1,\"\")","v":""}]
[{"$f":"IF(B73<>\"\",MAX($A$10:A72)+1,\"\")","v":""}]
[{"$f":"IF(B74<>\"\",MAX($A$10:A73)+1,\"\")","v":""}]
[{"$f":"IF(B75<>\"\",MAX($A$10:A74)+1,\"\")","v":""}]
[{"$f":"IF(B76<>\"\",MAX($A$10:A75)+1,\"\")","v":""}]
[{"$f":"IF(B77<>\"\",MAX($A$10:A76)+1,\"\")","v":""}]
[{"$f":"IF(B78<>\"\",MAX($A$10:A77)+1,\"\")","v":""}]
[{"$f":"IF(B79<>\"\",MAX($A$10:A78)+1,\"\")","v":""}]
[{"$f":"IF(B80<>\"\",MAX($A$10:A79)+1,\"\")","v":""}]
[{"$f":"IF(B81<>\"\",MAX($A$10:A80)+1,\"\")","v":""}]
[{"$f":"IF(B82<>\"\",MAX($A$10:A81)+1,\"\")","v":""}]
[null,null,null,null,"Subtotal I",{"$f":"SUM(F72:F82)","v":0}]
["Total INGRESOS",null,null,null,"TOTAL",{"$f":"+F18+F25+F32+F40+F46+F55+F63+F70+F83","v":0}]
[]
[{"$f":"'Relación de gastos'!A107:M107","v":"El Sr./Sra. (indicar el nombre y apellidos de la persona representante que firma la justificación )  con DNI/NIE (indicar el núm. DNI ) en calidad de persona física beneficiaria o representante legal de la persona jurídica beneficiaria (indicar nombre)  con NIF (indicar núm. NIF)."}]
["CERTIFICA que los ingresos imputados al proyecto/actividad/servicio subvencionado han sido efectivamente ingresados; que custodiará la documentación soporte que lo acredita; que esta documentación se encuentra a disposición del Ayuntamiento de Barcelona o de los demás ente municipales en los archivos de esta Entidad, durante un periodo mínimo de 4 años a contar desde la fecha de presentación de la presente justificación."]
[null,"Población y fecha:",{"$f":"IF('Relación de gastos'!C111<>\"\",'Relación de gastos'!C111,\"\")","v":""},null,null,"Firmado digitalmente"]
[]
[null,"Nota:"]
[null,"(*) Las columnas sombreadas en color amarillo se irán rellenando automáticamente a partir de los datos introducidos en la hoja de gastos"]
[null,"(0) El número de orden debe ser correlativo empezando por el número 1"]
[null,"(1) En caso de que el ingreso esté pendiente, indicar \"P. Cobro\""]

{"sheet":"Resumen estado gastos-ingresos","index":2,"n_rows":48,"n_cols":11,"rows_kept":48,"cut":false,"hidden":false,"merged":[[2,0,2,1],[3,0,3,1],[2,5,2,6],[3,5,3,6],[6,5,6,6],[2,2,2,3],[3,2,3,3],[4,2,4,3],[4,0,4,1],[6,0,6,1],[5,0,5,3],[20,0,20,1],[5,5,5,8],[7,5,7,6],[8,5,8,6],[9,5,9,6],[10,5,10,6],[17,0,17,1],[18,0,18,1],[19,0,19,1],[15,5,15,6],[20,7,20,8],[19,5,19,6],[17,5,17,6],[16,5,16,6],[20,5,20,6],[33,0,33,10],[34,0,35,10],[47,0,47,10],[42,0,42,10],[43,0,43,10],[44,0,44,10],[45,0,45,10],[46,0,46,10],[37,1,37,2],[37,7,37,8],[24,0,24,8],[25,0,31,10],[7,0,7,1],[8,0,8,1],[9,0,9,1],[15,0,15,1],[16,0,16,1],[10,0,10,1],[11,0,11,1],[12,0,12,1],[13,0,13,1],[14,0,14,1],[11,5,11,6],[12,5,12,6],[13,5,13,6],[14,5,14,6]]}
["Estado de los gastos realizados y de los ingresos obtenidos para la ejecución de la actividad subvencionada (*)"]
[]
["Nombre de la persona física/jurídica beneficiaria:",null,{"$f":"IF('Relación de gastos'!C3:D3<>\"\",'Relación de gastos'!C3:D3,\"\")","v":""},null,null,"Importe total del proyecto:",null,{"$f":"IF(+'Relación de gastos'!J3=\"\",\"\",+'Relación de gastos'!J3)","v":""},"euros"]
["Código de subvención:",null,{"$f":"IF('Relación de gastos'!C4:D4<>\"\",'Relación de gastos'!C4:D4,\"\")","v":""},null,null,"Importe de la subvención otorgada:",null,{"$f":"IF(+'Relación de gastos'!J4=\"\",\"\",+'Relación de gastos'!J4)","v":""},"euros"]
["Nombre del proyecto subvencionado:",null,{"$f":"IF('Relación de gastos'!C5:D5<>\"\",'Relación de gastos'!C5:D5,\"\")","v":""},null,null,"Periodo de ejecución del proyecto subvencionado:",null,null,{"$f":"IF(+'Relación de gastos'!J5=\"\",\"\",+'Relación de gastos'!J5)","v":""},"a",{"$f":"IF(+'Relación de gastos'!M5=\"\",\"\",+'Relación de gastos'!M5)","v":""}]
["Gastos del proyecto/actividad/servicio subvencionado",null,null,null,null,"Ingresos del proyecto/actividad/servicio subvencionado"]
["Concepto",null,"Previsión inicial o reformulación (1)","Gastos realizados\n(2)",null,"Concepto",null,"Previsión inicial o reformulación aprobada (1)","Ingresos obtenidos (3)"]
["A. Recursos Humanos \n(Nómina y Seguridad social del personal fijo y eventual)",null,null,{"$f":"'Relación de gastos'!J26","v":0},null,"A.B. Subvenciones municipales (en total)",null,null,{"$f":"'Relación de ingresos '!F18","v":0}]
["B. Alquileres \n(de materiales, locales, infraestructuras, etc.)",null,null,{"$f":"'Relación de gastos'!J35","v":0},null,"C. Subvenciones de otras administraciones",null,null,{"$f":"'Relación de ingresos '!F25","v":0}]
["C. Suministros (electricidad, agua, gas, etc.)",null,null,{"$f":"'Relación de gastos'!J42","v":0},null,"D. Aportaciones de ente privados",null,null,{"$f":"'Relación de ingresos '!F32","v":0}]
["D. Comunicaciones (teléfono, correo, mensajería, etc.)\n",null,null,{"$f":"'Relación de gastos'!J49","v":0},null,"E. Recursos propios",null,null,{"$f":"'Relación de ingresos '!F40","v":0}]
["E. Mantenimiento de edificios y/o instalaciones\n",null,null,{"$f":"'Relación de gastos'!J56","v":0},null,"F. Taquillaje",null,null,{"$f":"'Relación de ingresos '!F46","v":0}]
["F. Adquisición de material fungible\n(de oficina, etc.)",null,null,{"$f":"'Relación de gastos'!J63","v":0},null,"G. Cuotas de inscripción",null,null,{"$f":"'Relación de ingresos '!F55","v":0}]
["G. Transporte - Mensajería\n",null,null,{"$f":"'Relación de gastos'!J70","v":0},null,"H. Venta de Productos",null,null,{"$f":"'Relación de ingresos '!F63","v":0}]
["H. Publicidad y Propaganda\n",null,null,{"$f":"'Relación de gastos'!J76","v":0},null,"I. Publicidad y/o Esponsorización",null,null,{"$f":"'Relación de ingresos '!F70","v":0}]
["I. Seguros\t",null,null,{"$f":"'Relación de gastos'!J81","v":0},null,"J. Otros ingresos",null,null,{"$f":"'Relación de ingresos '!F83","v":0}]
["J. Alojamiento y dietas",null,null,{"$f":"'Relación de gastos'!J86","v":0},null,"Total Ingresos",null,{"$f":"SUM(H8:H16)","v":0},{"$f":"SUM(I8:I16)","v":0}]
["K. Viajes y desplazamientos",null,null,{"$f":"'Relación de gastos'!J91","v":0},null,"% financiación municipal (5)",null,{"$f":"IF(H8=\"\",\"- %\",+H8/H17)","v":"- %"},{"$f":"IFERROR(IF(I8=\"\",\"- %\",+I8/I17),\"-%\")","v":"-%"}]
["L. Trabajos realizados por empresas externas",null,null,{"$f":"'Relación de gastos'!J98","v":0},null,null,null,"Previsión inicial","Real"]
["M. Otros gastos (no incluidos en ninguno de los apartados anteriores, como por ejemplo amortizaciones de los bienes adquiridos, etc.)",null,null,{"$f":"'Relación de gastos'!J104","v":0},null,"Diferencia Ingresos - Gastos",null,{"$f":"+H17-C21","v":0},{"$f":"+I17-D21","v":0}]
["Total Gastos",null,{"$f":"SUM(C8:C20)","v":0},{"$f":"SUM(D8:D20)","v":0},null,"Desviación de Gastos (4)",null,"Desviación de ingresos (4)"]
[null,null,null,null,null,"Importe"," % (6)","Importe","%"]
[null,null,null,null,null,{"$f":"+D21-C21","v":0},{"$f":"IFERROR(F23/C21,0)","v":0},{"$f":"+I17-H17","v":0},{"$f":"IFERROR(H23/H17,0)","v":0}]
[]
["Explicar los motivos por los que existe una desviación entre el gasto previsto en la solicitud de subvención y la finalmente realizada , así como entre los ingresos previstos y los obtenidos."]
[]
[]
[]
[]
[]
[]
[]
[]
[{"$f":"+'Relación de gastos'!A107:N107","v":"El Sr./Sra. (indicar el nombre y apellidos de la persona representante que firma la justificación )  con DNI/NIE (indicar el núm. DNI ) en calidad de persona física beneficiaria o representante legal de la persona jurídica beneficiaria (indicar nombre)  con NIF (indicar núm. NIF)."}]
["DECLARA que en relación al proyecto/actividad/servicio subvencionado se han producido los ingresos y gastos que figuran en el presente documento, y que las desviaciones respecto al presupuesto inicial se han producido por las motivaciones arriba mencionadas, y para que así conste, a los efectos de justificar el cumplimiento del objeto de la subvención concedida, firmo la presente declaración responsable."]
[]
[]
["Población y fecha:",{"$f":"IF('Relación de gastos'!C111<>\"\",'Relación de gastos'!C111,\"\")","v":""},null,null,null,null,null,"Firmado digitalmente"]
[]
[]
["Notas:"]
["(*)Las columnas sombreadas en color amarillo se irán rellenando automáticamente a partir de los datos introducidos en las hojas de gastos e ingresos"]
["(1) Previsión inicial o reformulación aprobada : Se debe indicar la previsión inicial de gastos y de ingresos según lo que se indicó en el proyecto original en el \"plan de viabilidad económica del proyecto - presupuesto general\" . En caso de que ya se haya aprobado una reformulación, se deben indicar las cantidades reformuladas/modificadas."]
["(2) Gastos reales : Coste real total del proyecto subvencionado. Automáticamente se introducirán los subtotales de los gastos relacionados en la hoja Gastos-detalle."]
["(3) Ingresos reales : Total de ingresos obtenidos para la realización del proyecto subvencionado. Automáticamente se introducirán los subtotales de los ingresos relacionados en la hoja Ingresos-detalle"]
["(4) Desviación: En el caso de los gastos, la desviación es la diferencia entre gastos reales y la previsión inicial de gastos; y en el caso de ingresos, la diferencia entre los ingresos reales y la previsión inicial de ingresos."]
["(5) % financiación municipal : porcentaje que suponen las subvenciones municipales (A.B.) respecto del total de ingresos del proyecto subvencionado."]
["(6) El % de la desviación final de gastos se calcula dividiendo el importe resultante de gastos reales - gastos previstos, entre el total de gastos previstos y de la misma manera los ingresos. En caso de existir una desviación siempre se debe motivar."]

{"sheet":"Full1","index":3,"n_rows":0,"n_cols":0,"rows_kept":0,"cut":false,"hidden":true,"merged":[]}